[Event "*** Titled Tuesday Blitz"]
[Site "Chess.com"]
[Date "2019.05.07"]
[Round "9"]
[White "quesfr"]
[Black "Denis_Palkovich"]
[Result "1-0"]
[WhiteElo "2172"]
[BlackElo "2232"]
[TimeControl "180+2"]
[EndTime "15:05:55 PDT"]
[Termination "quesfr won by checkmate"]

1. e4 {[%clk 0:03:01.9]} 1... c6 {[%clk 0:02:55.8]} 2. d4 {[%clk 0:03:02.2]}
2... d5 {[%clk 0:02:56]} 3. e5 {[%clk 0:03:03.2]} 3... c5 {[%clk 0:02:56.6]} 4.
dxc5 {[%clk 0:03:03.2]} 4... e6 {[%clk 0:02:56.8]} 5. a3 {[%clk 0:03:04.3]} 5...
Bxc5 {[%clk 0:02:57]} 6. b4 {[%clk 0:03:05.3]} 6... Bb6 {[%clk 0:02:57.4]} 7.
Qg4 {[%clk 0:03:01.9]} 7... Kf8 {[%clk 0:02:44.7]} 8. Nf3 {[%clk 0:02:58.7]}
8... Ne7 {[%clk 0:02:45]} 9. Bd3 {[%clk 0:02:58.4]} 9... Qc7 {[%clk 0:02:26.8]}
10. O-O {[%clk 0:02:36.5]} 10... Ng6 {[%clk 0:02:13.9]} 11. Re1 {[%clk 0:02:28]}
11... Nc6 {[%clk 0:02:11]} 12. Bb2 {[%clk 0:02:25.7]} 12... Bd7 {[%clk
0:01:46.6]} 13. h4 {[%clk 0:02:24.5]} 13... h5 {[%clk 0:01:17.5]} 14. Qg3 {[%clk
0:02:15.4]} 14... Nce7 {[%clk 0:01:16.2]} 15. Ng5 {[%clk 0:02:04.8]} 15... a6
{[%clk 0:00:17.6]} 16. Qf3 {[%clk 0:01:56.8]} 16... Nf5 {[%clk 0:00:13.5]} 17.
Bxf5 {[%clk 0:01:56]} 17... exf5 {[%clk 0:00:14.8]} 18. Qxd5 {[%clk 0:01:48.5]}
18... Bc6 {[%clk 0:00:13.7]} 19. Qc4 {[%clk 0:01:27.4]} 19... Rd8 {[%clk
0:00:08.1]} 20. e6 {[%clk 0:01:20.6]} 20... Bd5 {[%clk 0:00:06.1]} 21. Qxc7
{[%clk 0:01:19.7]} 21... Bxc7 {[%clk 0:00:07.1]} 22. Nxf7 {[%clk 0:01:20.6]}
22... Bxe6 {[%clk 0:00:04.1]} 23. Nxd8 {[%clk 0:01:16.1]} 23... Bd5 {[%clk
0:00:03.8]} 24. Ne6+ {[%clk 0:01:16]} 24... Bxe6 {[%clk 0:00:02.7]} 25. Rxe6
{[%clk 0:01:17.9]} 25... Kf7 {[%clk 0:00:03.8]} 26. Re1 {[%clk 0:01:16.3]} 26...
Rd8 {[%clk 0:00:04.5]} 27. Bc3 {[%clk 0:01:10.7]} 27... Nxh4 {[%clk 0:00:05.1]}
28. Nd2 {[%clk 0:01:09.5]} 28... f4 {[%clk 0:00:06.6]} 29. Nf3 {[%clk
0:01:04.7]} 29... Nf5 {[%clk 0:00:07.4]} 30. Rad1 {[%clk 0:01:02.2]} 30... Rc8
{[%clk 0:00:08.5]} 31. Rd7+ {[%clk 0:00:57.2]} 31... Kg6 {[%clk 0:00:09.9]} 32.
Re6+ {[%clk 0:00:49.4]} 32... Kh7 {[%clk 0:00:10.8]} 33. Ng5+ {[%clk 0:00:48.9]}
33... Kg8 {[%clk 0:00:11]} 34. Rxc7 {[%clk 0:00:48.1]} 34... Rxc7 {[%clk
0:00:09.2]} 35. Re8# {[%clk 0:00:48.9]} 1-0

[Event "*** Titled Tuesday Blitz"]
[Site "Chess.com"]
[Date "2019.05.07"]
[Round "9"]
[White "monalize"]
[Black "Jbd735"]
[Result "1-0"]
[WhiteElo "2352"]
[BlackElo "2445"]
[TimeControl "180+2"]
[EndTime "15:06:04 PDT"]
[Termination "monalize won on time"]

1. e4 {[%clk 0:03:01.9]} 1... e5 {[%clk 0:03:00.7]} 2. Nf3 {[%clk 0:03:02.3]}
2... Nc6 {[%clk 0:03:01.9]} 3. Bb5 {[%clk 0:03:03.5]} 3... a6 {[%clk 0:03:02.8]}
4. Bxc6 {[%clk 0:03:04.4]} 4... dxc6 {[%clk 0:03:03.7]} 5. O-O {[%clk
0:03:05.7]} 5... f6 {[%clk 0:03:04.8]} 6. d4 {[%clk 0:03:05.8]} 6... exd4 {[%clk
0:03:06.7]} 7. Nxd4 {[%clk 0:03:06.2]} 7... c5 {[%clk 0:03:08]} 8. Ne2 {[%clk
0:03:06.9]} 8... Qxd1 {[%clk 0:03:09.3]} 9. Rxd1 {[%clk 0:03:07.3]} 9... Bd7
{[%clk 0:03:10]} 10. Bf4 {[%clk 0:03:06.5]} 10... O-O-O {[%clk 0:03:10.5]} 11.
Nbc3 {[%clk 0:03:06.9]} 11... Ne7 {[%clk 0:02:58.4]} 12. f3 {[%clk 0:03:06.2]}
12... b6 {[%clk 0:02:40.4]} 13. Rd2 {[%clk 0:03:02.8]} 13... Be6 {[%clk
0:02:39.7]} 14. Rad1 {[%clk 0:03:02.3]} 14... Rxd2 {[%clk 0:02:40.2]} 15. Rxd2
{[%clk 0:03:02.8]} 15... g6 {[%clk 0:02:32.1]} 16. Kf2 {[%clk 0:02:58.6]} 16...
Bg7 {[%clk 0:02:31.6]} 17. Be3 {[%clk 0:02:53.5]} 17... Rd8 {[%clk 0:02:30.8]}
18. Nf4 {[%clk 0:02:53.3]} 18... Rxd2+ {[%clk 0:02:29.2]} 19. Bxd2 {[%clk
0:02:53.2]} 19... Bf7 {[%clk 0:02:29.3]} 20. h4 {[%clk 0:02:47.1]} 20... Kd7
{[%clk 0:02:24.5]} 21. b3 {[%clk 0:02:41.1]} 21... f5 {[%clk 0:02:19.1]} 22.
Nfe2 {[%clk 0:02:34.9]} 22... fxe4 {[%clk 0:02:18.1]} 23. Nxe4 {[%clk
0:02:34.8]} 23... Nf5 {[%clk 0:02:13.8]} 24. g4 {[%clk 0:02:21.9]} 24... Nd4
{[%clk 0:01:59.3]} 25. c3 {[%clk 0:02:13.2]} 25... Nxe2 {[%clk 0:01:55.8]} 26.
Kxe2 {[%clk 0:02:13.5]} 26... a5 {[%clk 0:01:52.8]} 27. c4 {[%clk 0:02:13.8]}
27... a4 {[%clk 0:01:39.8]} 28. Kd3 {[%clk 0:02:14.4]} 28... axb3 {[%clk
0:01:32.2]} 29. axb3 {[%clk 0:02:14.1]} 29... h6 {[%clk 0:00:58.5]} 30. Bc3
{[%clk 0:02:09.2]} 30... Bf8 {[%clk 0:00:58.9]} 31. Be5 {[%clk 0:02:05.3]} 31...
Kc6 {[%clk 0:00:32.4]} 32. Bf6 {[%clk 0:01:58.1]} 32... Kd7 {[%clk 0:00:31.2]}
33. Be5 {[%clk 0:01:57.4]} 33... Kc6 {[%clk 0:00:31.9]} 34. Nc3 {[%clk
0:01:53.8]} 34... Be7 {[%clk 0:00:28.5]} 35. Bg3 {[%clk 0:01:50.5]} 35... Bd6
{[%clk 0:00:14.1]} 36. Bf2 {[%clk 0:01:48.1]} 36... g5 {[%clk 0:00:13.6]} 37.
hxg5 {[%clk 0:01:47.7]} 37... hxg5 {[%clk 0:00:14.3]} 38. Be3 {[%clk 0:01:48.2]}
38... Bg6+ {[%clk 0:00:14.1]} 39. Ne4 {[%clk 0:01:47.2]} 39... Be7 {[%clk
0:00:12.7]} 40. Kd2 {[%clk 0:01:41.1]} 40... Bxe4 {[%clk 0:00:13]} 41. fxe4
{[%clk 0:01:41.4]} 41... Kd6 {[%clk 0:00:13.3]} 42. Kd3 {[%clk 0:01:41.5]} 42...
Ke6 {[%clk 0:00:12.2]} 43. Bf2 {[%clk 0:01:40.7]} 43... Bd6 {[%clk 0:00:12.6]}
44. Ke3 {[%clk 0:01:41.2]} 44... Bf4+ {[%clk 0:00:11.3]} 45. Kf3 {[%clk
0:01:41.8]} 45... Ke5 {[%clk 0:00:11.7]} 46. Be3 {[%clk 0:01:39.7]} 46... Bh2
{[%clk 0:00:10.4]} 47. Bxg5 {[%clk 0:01:39.1]} 47... Kd4 {[%clk 0:00:10.4]} 48.
Bf4 {[%clk 0:01:39.5]} 1-0

[Event "*** Titled Tuesday Blitz"]
[Site "Chess.com"]
[Date "2019.05.07"]
[Round "9"]
[White "mikhaillushenkov"]
[Black "PotapovaM"]
[Result "1-0"]
[WhiteElo "2744"]
[BlackElo "2471"]
[TimeControl "180+2"]
[EndTime "15:06:17 PDT"]
[Termination "mikhaillushenkov won by resignation"]

1. Nf3 {[%clk 0:03:01.9]} 1... Nf6 {[%clk 0:02:59]} 2. c4 {[%clk 0:03:02.3]}
2... g6 {[%clk 0:02:50.7]} 3. b3 {[%clk 0:03:02.1]} 3... Bg7 {[%clk 0:02:50.6]}
4. Bb2 {[%clk 0:03:01.9]} 4... O-O {[%clk 0:02:52]} 5. g3 {[%clk 0:02:59.8]}
5... b6 {[%clk 0:02:52.2]} 6. Bg2 {[%clk 0:02:56]} 6... Bb7 {[%clk 0:02:53.8]}
7. O-O {[%clk 0:02:56.6]} 7... c5 {[%clk 0:02:52.9]} 8. Nc3 {[%clk 0:02:54.3]}
8... d5 {[%clk 0:02:48.1]} 9. Nxd5 {[%clk 0:02:53.7]} 9... Nxd5 {[%clk
0:02:47.8]} 10. Bxg7 {[%clk 0:02:49.8]} 10... Kxg7 {[%clk 0:02:49.7]} 11. cxd5
{[%clk 0:02:50.3]} 11... Bxd5 {[%clk 0:02:45]} 12. d4 {[%clk 0:02:48.9]} 12...
Nd7 {[%clk 0:02:06.7]} 13. Rc1 {[%clk 0:02:45]} 13... Rc8 {[%clk 0:01:52.5]} 14.
dxc5 {[%clk 0:02:45]} 14... Rxc5 {[%clk 0:01:27]} 15. Qd4+ {[%clk 0:02:41.8]}
15... Nf6 {[%clk 0:01:10.8]} 16. Rxc5 {[%clk 0:02:40.6]} 16... bxc5 {[%clk
0:01:12.7]} 17. Qxc5 {[%clk 0:02:42]} 17... Qb6 {[%clk 0:01:05.6]} 18. Rc1
{[%clk 0:02:30.9]} 18... e6 {[%clk 0:00:46.4]} 19. Qxb6 {[%clk 0:02:29.2]} 19...
axb6 {[%clk 0:00:48.3]} 20. Ne5 {[%clk 0:02:30.4]} 20... Ra8 {[%clk 0:00:43.5]}
21. Rc2 {[%clk 0:02:29.6]} 21... Bxg2 {[%clk 0:00:39.9]} 22. Kxg2 {[%clk
0:02:31.5]} 22... Nd5 {[%clk 0:00:41.5]} 23. Nd3 {[%clk 0:02:29.2]} 23... Rd8
{[%clk 0:00:38.8]} 24. a4 {[%clk 0:02:22.4]} 24... f5 {[%clk 0:00:34.8]} 25. Kf3
{[%clk 0:02:18.4]} 25... Kf6 {[%clk 0:00:34.9]} 26. Rc6 {[%clk 0:02:16.9]} 26...
g5 {[%clk 0:00:29.7]} 27. Kg2 {[%clk 0:02:11.6]} 27... h5 {[%clk 0:00:27]} 28.
f4 {[%clk 0:02:05.8]} 28... gxf4 {[%clk 0:00:21.1]} 29. gxf4 {[%clk 0:02:07.7]}
29... Rg8+ {[%clk 0:00:19.4]} 30. Kf2 {[%clk 0:02:04]} 30... h4 {[%clk
0:00:18.7]} 31. e3 {[%clk 0:01:55.6]} 31... h3 {[%clk 0:00:19.2]} 32. Ne1 {[%clk
0:01:56.2]} 32... Rg7 {[%clk 0:00:11.9]} 33. Rc8 {[%clk 0:01:32.6]} 33... Rh7
{[%clk 0:00:05.3]} 34. Nf3 {[%clk 0:01:30.9]} 34... Nb4 {[%clk 0:00:04.6]} 35.
Ng5 {[%clk 0:01:28.1]} 35... Rd7 {[%clk 0:00:05.3]} 36. Nxh3 {[%clk 0:01:24.3]}
36... Rd2+ {[%clk 0:00:06.6]} 37. Kg3 {[%clk 0:01:23.6]} 37... Re2 {[%clk
0:00:06.7]} 38. Kf3 {[%clk 0:01:24.5]} 38... Rxh2 {[%clk 0:00:07.7]} 39. Ng5
{[%clk 0:01:26.2]} 39... Rb2 {[%clk 0:00:06]} 40. Re8 {[%clk 0:01:23.2]} 40...
Rxb3 {[%clk 0:00:04.3]} 41. Rxe6+ {[%clk 0:01:24.5]} 41... Kg7 {[%clk
0:00:05.8]} 42. Rxb6 {[%clk 0:01:25.8]} 42... Rb2 {[%clk 0:00:05.9]} 43. a5
{[%clk 0:01:24.5]} 43... Nd3 {[%clk 0:00:02.7]} 44. Rxb2 {[%clk 0:01:25.1]}
44... Nxb2 {[%clk 0:00:04.6]} 45. a6 {[%clk 0:01:26.6]} 45... Nc4 {[%clk
0:00:06.3]} 46. a7 {[%clk 0:01:27.3]} 46... Nb6 {[%clk 0:00:07.5]} 47. Ne6+
{[%clk 0:01:28.5]} 47... Kf6 {[%clk 0:00:08.7]} 48. Nc7 {[%clk 0:01:29]} 48...
Ke7 {[%clk 0:00:09.2]} 49. a8=Q {[%clk 0:01:30.3]} 1-0

[Event "*** Titled Tuesday Blitz"]
[Site "Chess.com"]
[Date "2019.05.07"]
[Round "9"]
[White "valeriocarnicelli"]
[Black "IIIlllII1llIl"]
[Result "0-1"]
[WhiteElo "2526"]
[BlackElo "2734"]
[TimeControl "180+2"]
[EndTime "15:06:31 PDT"]
[Termination "IIIlllII1llIl won by resignation"]

1. e4 {[%clk 0:03:01.9]} 1... c5 {[%clk 0:02:55.3]} 2. Nf3 {[%clk 0:02:49.7]}
2... d6 {[%clk 0:02:55.8]} 3. d4 {[%clk 0:02:51]} 3... cxd4 {[%clk 0:02:57.7]}
4. Nxd4 {[%clk 0:02:52.9]} 4... Nf6 {[%clk 0:02:58.4]} 5. Nc3 {[%clk 0:02:54.4]}
5... a6 {[%clk 0:02:59.3]} 6. f3 {[%clk 0:02:55.9]} 6... e5 {[%clk 0:02:58.6]}
7. Nb3 {[%clk 0:02:57.2]} 7... Be6 {[%clk 0:02:58]} 8. Be3 {[%clk 0:02:58.7]}
8... Nbd7 {[%clk 0:02:56.2]} 9. Qd2 {[%clk 0:03:00.3]} 9... b5 {[%clk
0:02:55.4]} 10. O-O-O {[%clk 0:03:01]} 10... h5 {[%clk 0:02:55.9]} 11. Nd5
{[%clk 0:02:58.3]} 11... Bxd5 {[%clk 0:02:39.1]} 12. exd5 {[%clk 0:03:00.2]}
12... Nb6 {[%clk 0:02:39.8]} 13. Bxb6 {[%clk 0:02:42.6]} 13... Qxb6 {[%clk
0:02:41.7]} 14. Kb1 {[%clk 0:02:41.7]} 14... g6 {[%clk 0:01:45.7]} 15. Qa5
{[%clk 0:02:25]} 15... Qb7 {[%clk 0:01:13.9]} 16. a4 {[%clk 0:02:13.4]} 16... b4
{[%clk 0:01:14]} 17. Bc4 {[%clk 0:02:08.4]} 17... Bg7 {[%clk 0:00:37.7]} 18. f4
{[%clk 0:02:00.2]} 18... Nd7 {[%clk 0:00:29.2]} 19. Rhe1 {[%clk 0:01:57.9]}
19... O-O {[%clk 0:00:29.6]} 20. f5 {[%clk 0:01:42.9]} 20... Rfc8 {[%clk
0:00:21.8]} 21. Bd3 {[%clk 0:01:39.8]} 21... Bf6 {[%clk 0:00:18.6]} 22. Re4
{[%clk 0:01:35.9]} 22... Rcb8 {[%clk 0:00:15.9]} 23. fxg6 {[%clk 0:01:20.8]}
23... Bd8 {[%clk 0:00:17]} 24. gxf7+ {[%clk 0:01:19.6]} 24... Kf8 {[%clk
0:00:17.9]} 25. Bxa6 {[%clk 0:01:14.8]} 25... Rxa6 {[%clk 0:00:17.9]} 26. Qb5
{[%clk 0:01:15.1]} 26... Qxb5 {[%clk 0:00:17.6]} 27. axb5 {[%clk 0:01:16.5]}
27... Rxb5 {[%clk 0:00:19]} 28. Nd4 {[%clk 0:00:53.5]} 28... exd4 {[%clk
0:00:17.2]} 29. Re8+ {[%clk 0:00:55.4]} 29... Kxf7 {[%clk 0:00:18.5]} 30. Rxd8
{[%clk 0:00:57.3]} 30... Ke7 {[%clk 0:00:18.5]} 31. Rh8 {[%clk 0:00:58]} 31...
Rxd5 {[%clk 0:00:19.6]} 32. Rf1 {[%clk 0:00:55.7]} 32... Re5 {[%clk 0:00:18.3]}
33. Rh7+ {[%clk 0:00:55.6]} 33... Ke6 {[%clk 0:00:17.4]} 34. b3 {[%clk
0:00:53.1]} 34... Nc5 {[%clk 0:00:18.2]} 35. h3 {[%clk 0:00:48.8]} 35... d3
{[%clk 0:00:18.5]} 36. cxd3 {[%clk 0:00:47.9]} 36... Kd5 {[%clk 0:00:16.4]} 37.
d4 {[%clk 0:00:47.7]} 37... Kxd4 {[%clk 0:00:17.5]} 38. Rhf7 {[%clk 0:00:42.3]}
38... Nd3 {[%clk 0:00:14.5]} 39. R7f3 {[%clk 0:00:39.9]} 39... Re2 {[%clk
0:00:13.9]} 0-1

[Event "*** Titled Tuesday Blitz"]
[Site "Chess.com"]
[Date "2019.05.07"]
[Round "9"]
[White "DrMelekess"]
[Black "Jospem"]
[Result "1-0"]
[WhiteElo "2787"]
[BlackElo "2884"]
[TimeControl "180+2"]
[EndTime "15:06:32 PDT"]
[Termination "DrMelekess won on time"]

1. d4 {[%clk 0:02:51]} 1... Nf6 {[%clk 0:03:00.5]} 2. Nf3 {[%clk 0:02:48.8]}
2... e6 {[%clk 0:03:01.9]} 3. c4 {[%clk 0:02:49.2]} 3... Bb4+ {[%clk 0:03:02.4]}
4. Bd2 {[%clk 0:02:49.8]} 4... Qe7 {[%clk 0:03:03.6]} 5. e3 {[%clk 0:02:45.5]}
5... b6 {[%clk 0:03:02.8]} 6. Be2 {[%clk 0:02:46.1]} 6... Bb7 {[%clk 0:03:03.5]}
7. O-O {[%clk 0:02:47]} 7... O-O {[%clk 0:03:03.7]} 8. Nc3 {[%clk 0:02:47]} 8...
d6 {[%clk 0:03:00.5]} 9. Rc1 {[%clk 0:02:46.4]} 9... Nbd7 {[%clk 0:03:00.6]} 10.
Nb5 {[%clk 0:02:39.4]} 10... Bxd2 {[%clk 0:03:00.9]} 11. Nxd2 {[%clk 0:02:41.3]}
11... a6 {[%clk 0:02:54.3]} 12. Nc3 {[%clk 0:02:39]} 12... c5 {[%clk 0:02:51]}
13. Bf3 {[%clk 0:02:34.6]} 13... cxd4 {[%clk 0:02:39]} 14. exd4 {[%clk
0:02:14.2]} 14... Bxf3 {[%clk 0:02:31.3]} 15. Nxf3 {[%clk 0:02:14.6]} 15... Qd8
{[%clk 0:02:24.2]} 16. Qd2 {[%clk 0:02:07.9]} 16... Rc8 {[%clk 0:02:24.1]} 17.
b3 {[%clk 0:02:08.5]} 17... Re8 {[%clk 0:02:25.1]} 18. Rfe1 {[%clk 0:02:07.4]}
18... Nf8 {[%clk 0:02:25.4]} 19. h3 {[%clk 0:01:47]} 19... Ng6 {[%clk
0:02:25.2]} 20. d5 {[%clk 0:00:47.9]} 20... e5 {[%clk 0:02:24.2]} 21. g3 {[%clk
0:00:47]} 21... h6 {[%clk 0:02:15.7]} 22. Kg2 {[%clk 0:00:47.9]} 22... Rc7
{[%clk 0:02:10.1]} 23. Nd1 {[%clk 0:00:44.9]} 23... Qc8 {[%clk 0:01:54.5]} 24.
Ne3 {[%clk 0:00:38.4]} 24... Rf8 {[%clk 0:01:51.8]} 25. b4 {[%clk 0:00:33.9]}
25... Ne7 {[%clk 0:00:58.7]} 26. Rc2 {[%clk 0:00:27.6]} 26... Ne4 {[%clk
0:00:53]} 27. Qd3 {[%clk 0:00:24.7]} 27... Nf6 {[%clk 0:00:54]} 28. Qd2 {[%clk
0:00:25.3]} 28... Nd7 {[%clk 0:00:52.1]} 29. Rec1 {[%clk 0:00:18.2]} 29... f5
{[%clk 0:00:44.5]} 30. c5 {[%clk 0:00:14.9]} 30... bxc5 {[%clk 0:00:45.4]} 31.
bxc5 {[%clk 0:00:16.1]} 1-0

[Event "*** Titled Tuesday Blitz"]
[Site "Chess.com"]
[Date "2019.05.07"]
[Round "9"]
[White "Roenko_Artur"]
[Black "Babas"]
[Result "1-0"]
[WhiteElo "2223"]
[BlackElo "2394"]
[TimeControl "180+2"]
[EndTime "15:06:57 PDT"]
[Termination "Roenko_Artur won by checkmate"]

1. e4 {[%clk 0:03:01.9]} 1... e5 {[%clk 0:02:59.2]} 2. Nf3 {[%clk 0:03:01.9]}
2... Nf6 {[%clk 0:03:00.7]} 3. Nxe5 {[%clk 0:03:01.9]} 3... d6 {[%clk
0:03:02.2]} 4. Nf3 {[%clk 0:03:00.1]} 4... Nxe4 {[%clk 0:03:03.7]} 5. Nc3 {[%clk
0:03:01.3]} 5... Nxc3 {[%clk 0:03:04.9]} 6. dxc3 {[%clk 0:03:03.2]} 6... Be7
{[%clk 0:03:06.5]} 7. Bd3 {[%clk 0:03:03.8]} 7... Nd7 {[%clk 0:03:08.1]} 8. Be3
{[%clk 0:03:04.1]} 8... Nf6 {[%clk 0:03:09.6]} 9. Qd2 {[%clk 0:03:04.5]} 9...
O-O {[%clk 0:03:11.1]} 10. O-O-O {[%clk 0:03:04.2]} 10... c5 {[%clk 0:03:12.5]}
11. Ng5 {[%clk 0:02:53.4]} 11... Qa5 {[%clk 0:03:10.7]} 12. Kb1 {[%clk 0:02:53]}
12... b5 {[%clk 0:03:11.1]} 13. Ne4 {[%clk 0:02:45.1]} 13... Rb8 {[%clk
0:02:56.8]} 14. Bf4 {[%clk 0:02:38.2]} 14... b4 {[%clk 0:02:37.7]} 15. cxb4
{[%clk 0:02:18.7]} 15... cxb4 {[%clk 0:02:33.6]} 16. Nxf6+ {[%clk 0:02:11.3]}
16... Bxf6 {[%clk 0:02:29.7]} 17. Bxd6 {[%clk 0:02:09.7]} 17... Be6 {[%clk
0:02:07.7]} 18. b3 {[%clk 0:02:04.9]} 18... Rfd8 {[%clk 0:01:59.3]} 19. Bxb8
{[%clk 0:02:01.5]} 19... Rxb8 {[%clk 0:02:01.2]} 20. Rhe1 {[%clk 0:01:52.2]}
20... Bc3 {[%clk 0:01:47.4]} 21. Qf4 {[%clk 0:01:47.9]} 21... Rb6 {[%clk
0:01:11.2]} 22. Qe4 {[%clk 0:01:37.6]} 22... g6 {[%clk 0:01:01.3]} 23. Qf4
{[%clk 0:01:17.4]} 23... Kg7 {[%clk 0:01:01.1]} 24. h4 {[%clk 0:00:57.4]} 24...
Qc5 {[%clk 0:00:44]} 25. g4 {[%clk 0:00:49.4]} 25... h5 {[%clk 0:00:28.7]} 26.
gxh5 {[%clk 0:00:49.4]} 26... Qxh5 {[%clk 0:00:29.4]} 27. Rg1 {[%clk 0:00:48.5]}
27... Rd6 {[%clk 0:00:18.2]} 28. Qxd6 {[%clk 0:00:42]} 28... Qa5 {[%clk
0:00:16.3]} 29. Qf4 {[%clk 0:00:41.9]} 29... Be5 {[%clk 0:00:16.1]} 30. Qe3
{[%clk 0:00:38.4]} 30... Qc7 {[%clk 0:00:14.5]} 31. Be4 {[%clk 0:00:30.7]} 31...
Bf6 {[%clk 0:00:13.4]} 32. h5 {[%clk 0:00:30.5]} 32... Qe5 {[%clk 0:00:13.7]}
33. c3 {[%clk 0:00:26.5]} 33... bxc3 {[%clk 0:00:14.9]} 34. Kc2 {[%clk
0:00:27.6]} 34... Qa5 {[%clk 0:00:15.6]} 35. a4 {[%clk 0:00:24.6]} 35... Qb4
{[%clk 0:00:14.6]} 36. Bd5 {[%clk 0:00:18.9]} 36... Bf5+ {[%clk 0:00:13.8]} 37.
Rd3 {[%clk 0:00:18]} 37... Qa3 {[%clk 0:00:13.8]} 38. h6+ {[%clk 0:00:10.8]}
38... Kh8 {[%clk 0:00:13.8]} 39. Qe8+ {[%clk 0:00:10.4]} 39... Qf8 {[%clk
0:00:08.6]} 40. Qxf8+ {[%clk 0:00:11.2]} 40... Kh7 {[%clk 0:00:09.8]} 41. Qxf7+
{[%clk 0:00:12.3]} 41... Kh8 {[%clk 0:00:09.5]} 42. Qg8# {[%clk 0:00:13.5]} 1-0

[Event "*** Titled Tuesday Blitz"]
[Site "Chess.com"]
[Date "2019.05.07"]
[Round "9"]
[White "Sebastian"]
[Black "hansen"]
[Result "1-0"]
[WhiteElo "2916"]
[BlackElo "2773"]
[TimeControl "180+2"]
[EndTime "15:06:58 PDT"]
[Termination "Sebastian won by checkmate"]

1. e4 {[%clk 0:03:01.9]} 1... c5 {[%clk 0:02:54.4]} 2. Nf3 {[%clk 0:03:02.3]}
2... e6 {[%clk 0:02:48.7]} 3. d4 {[%clk 0:03:03.6]} 3... cxd4 {[%clk 0:02:49.7]}
4. Nxd4 {[%clk 0:03:05.1]} 4... Nc6 {[%clk 0:02:49]} 5. Nc3 {[%clk 0:03:06.4]}
5... a6 {[%clk 0:02:43.5]} 6. Be3 {[%clk 0:03:06.9]} 6... Qc7 {[%clk 0:02:38.5]}
7. Qd2 {[%clk 0:03:06.9]} 7... Nf6 {[%clk 0:02:38.8]} 8. O-O-O {[%clk
0:03:07.3]} 8... Be7 {[%clk 0:02:32.8]} 9. f3 {[%clk 0:03:08]} 9... Nxd4 {[%clk
0:02:29.2]} 10. Bxd4 {[%clk 0:03:05.2]} 10... b5 {[%clk 0:02:29.1]} 11. e5
{[%clk 0:03:03.7]} 11... b4 {[%clk 0:02:26.7]} 12. exf6 {[%clk 0:03:04]} 12...
bxc3 {[%clk 0:02:27.6]} 13. Bxc3 {[%clk 0:03:04.9]} 13... Bxf6 {[%clk
0:02:21.3]} 14. Bxf6 {[%clk 0:03:03.6]} 14... gxf6 {[%clk 0:02:22.3]} 15. Kb1
{[%clk 0:03:02.3]} 15... Rb8 {[%clk 0:02:17.8]} 16. Bd3 {[%clk 0:02:52.7]} 16...
d5 {[%clk 0:02:12.1]} 17. Rhe1 {[%clk 0:02:48.4]} 17... h5 {[%clk 0:02:09.2]}
18. f4 {[%clk 0:02:47.1]} 18... Kf8 {[%clk 0:02:03.4]} 19. b3 {[%clk 0:02:38.9]}
19... a5 {[%clk 0:02:03.9]} 20. Qf2 {[%clk 0:02:16.6]} 20... Rb4 {[%clk
0:01:51.7]} 21. Rf1 {[%clk 0:01:54.4]} 21... a4 {[%clk 0:01:48.7]} 22. Qd2
{[%clk 0:01:52.8]} 22... Qc5 {[%clk 0:01:47]} 23. Rf3 {[%clk 0:01:39.3]} 23...
Rb6 {[%clk 0:01:41]} 24. Be2 {[%clk 0:01:33.5]} 24... Bd7 {[%clk 0:01:25.3]} 25.
Rh3 {[%clk 0:01:25.2]} 25... h4 {[%clk 0:01:24.7]} 26. Rc3 {[%clk 0:01:22.1]}
26... Qb4 {[%clk 0:01:23.6]} 27. Qe3 {[%clk 0:01:22.5]} 27... Rg8 {[%clk
0:01:14.9]} 28. g3 {[%clk 0:01:21.7]} 28... hxg3 {[%clk 0:01:12.4]} 29. hxg3
{[%clk 0:01:23.6]} 29... Rc6 {[%clk 0:01:08.9]} 30. Rxc6 {[%clk 0:01:11]} 30...
Bxc6 {[%clk 0:01:10.8]} 31. g4 {[%clk 0:00:54.4]} 31... Ke7 {[%clk 0:01:03.3]}
32. g5 {[%clk 0:00:52.3]} 32... fxg5 {[%clk 0:01:02.6]} 33. fxg5 {[%clk
0:00:53.9]} 33... axb3 {[%clk 0:00:31.6]} 34. axb3 {[%clk 0:00:47.2]} 34... d4
{[%clk 0:00:17.9]} 35. Rxd4 {[%clk 0:00:27.8]} 35... Qa5 {[%clk 0:00:18.4]} 36.
Rc4 {[%clk 0:00:18.4]} 36... Bd5 {[%clk 0:00:07]} 37. Ra4 {[%clk 0:00:16.4]}
37... Qe1+ {[%clk 0:00:05.6]} 38. Kb2 {[%clk 0:00:16.5]} 38... Rc8 {[%clk
0:00:06.6]} 39. Ra7+ {[%clk 0:00:10.3]} 39... Kf8 {[%clk 0:00:07.2]} 40. Qd4
{[%clk 0:00:11.3]} 40... Bxb3 {[%clk 0:00:04]} 41. Qh8# {[%clk 0:00:09.9]} 1-0